Department Family,Entity,Date,Expense Type,Expense Area,Supplier,Transaction Number,VAT Registration Number,Purchase Invoice Number,AP Amount
Department of Health,Royal Papworth Hospital NHS Foundation Trust,10/31/2021,Extrnl Rehrge : Recivd,Clinical Perfusion,CAMBRIDGE PERFUSION SERVICES LLP,39916937,924492904,2116,"52,345.39"
Department of Health,Royal Papworth Hospital NHS Foundation Trust,10/31/2021,Extrnl Rehrge : Recivd,Clinical Perfusion,CAMBRIDGE PERFUSION SERVICES LLP,39916939,924492904,2119,"73,399.95"
Department of Health,Royal Papworth Hospital NHS Foundation Trust,10/31/2021,Extrnl Rehrge : Recivd,STA - Covid 19,CAMBRIDGE PERFUSION SERVICES LLP,39973675,924492904,2121,"62,777.91"
Department of Health,Royal Papworth Hospital NHS Foundation Trust,10/31/2021,Computer Maintenance,Sitewide I T,CHARTERHOUSE VOICE & DATA LTD,40041945,311 3890 28,INV00000000000509,"80,401.76"
Department of Health,Royal Papworth Hospital NHS Foundation Trust,10/31/2021,Electricity,Energy,EDF ENERGY 1 LTD,39949767,523041202,000007494010,"53,004.74"
Department of Health,Royal Papworth Hospital NHS Foundation Trust,10/31/2021,Electricity,Energy,EDF ENERGY 1 LTD,39949772,523041202,000010684002,"77,466.13"
Department of Health,Royal Papworth Hospital NHS Foundation Trust,10/31/2021,Electricity,Energy,EDF ENERGY 1 LTD,39949777,523041202,3288576628000010665131,"68,010.45"
Department of Health,Royal Papworth Hospital NHS Foundation Trust,10/31/2021,Agency Admin & Clerical,Sitewide I T,FEEDBACK MEDICAL LTD,39798226,,0760,"86,400.00"
Department of Health,Royal Papworth Hospital NHS Foundation Trust,10/31/2021,Contr Estate Management,Engineering,FLEETSOLVE LTD,39864788,,8685,"29,725.70"
Department of Health,Royal Papworth Hospital NHS Foundation Trust,10/31/2021,Drugs,Balance Sheet,HEALTHCARE AT HOME LTD,40014008,873342418-1,HAH OCTCONS04,"158,794.40"
Department of Health,Royal Papworth Hospital NHS Foundation Trust,10/31/2021,Drugs,Balance Sheet,HEALTHCARE AT HOME LTD,40014009,873342418-1,HAH OCTCONS05,"158,794.40"
Department of Health,Royal Papworth Hospital NHS Foundation Trust,10/31/2021,Drugs,Balance Sheet,HEALTHCARE AT HOME LTD,40014010,873342418-1,HAH OCTCONS06,"158,794.40"
Department of Health,Royal Papworth Hospital NHS Foundation Trust,10/31/2021,Drugs,Balance Sheet,HEALTHCARE AT HOME LTD,40014011,873342418-1,HAH OCTCONS07,"158,794.40"
Department of Health,Royal Papworth Hospital NHS Foundation Trust,10/31/2021,Drugs,Balance Sheet,HEALTHCARE AT HOME LTD,39917801,873342418-1,HAHOCTCONS01,"246,131.32"
Department of Health,Royal Papworth Hospital NHS Foundation Trust,10/31/2021,Drugs,Balance Sheet,HEALTHCARE AT HOME LTD,39917802,873342418-1,HAHOCTCONS02,"238,191.60"
Department of Health,Royal Papworth Hospital NHS Foundation Trust,10/31/2021,Drugs,Balance Sheet,HEALTHCARE AT HOME LTD,39917803,873342418-1,HAHOCTCONS03,"54,580.82"
Department of Health,Royal Papworth Hospital NHS Foundation Trust,10/31/2021,Income tax - Current,Balance Sheet,INLAND REVENUE CIS,39851504,,126PQ001177772206,"3,266,037.12"
Department of Health,Royal Papworth Hospital NHS Foundation Trust,10/31/2021,Drugs,Balance Sheet,LLOYDS PHARMACY CLINICAL HOMECARE LTD,39917799,GB 222516987,LPCHOCTCONS01,"285,829.92"
Department of Health,Royal Papworth Hospital NHS Foundation Trust,10/31/2021,Drugs,Balance Sheet,LLOYDS PHARMACY CLINICAL HOMECARE LTD,39917800,GB 222516987,LPCHOCTCONS02,"45,720.52"
Department of Health,Royal Papworth Hospital NHS Foundation Trust,10/31/2021,Drugs,Balance Sheet,LLOYDS PHARMACY CLINICAL HOMECARE LTD,40013952,GB 222516987,OCTCONS03,"166,734.12"
Department of Health,Royal Papworth Hospital NHS Foundation Trust,10/31/2021,Drugs,Balance Sheet,LLOYDS PHARMACY CLINICAL HOMECARE LTD,40013953,GB 222516987,OCTCONS04,"166,734.12"
Department of Health,Royal Papworth Hospital NHS Foundation Trust,10/31/2021,Drugs,Balance Sheet,LLOYDS PHARMACY CLINICAL HOMECARE LTD,40013954,GB 222516987,OCTCONS05,"39,084.92"
Department of Health,Royal Papworth Hospital NHS Foundation Trust,10/31/2021,Drugs,Balance Sheet,LLOYDS PHARMACY CLINICAL HOMECARE LTD,40014006,GB 222516987,OCTCONS06,"142,914.96"
Department of Health,Royal Papworth Hospital NHS Foundation Trust,10/31/2021,Drugs,Balance Sheet,LLOYDS PHARMACY CLINICAL HOMECARE LTD,40014005,GB 222516987,OCTCONS07,"142,914.96"
Department of Health,Royal Papworth Hospital NHS Foundation Trust,10/31/2021,Drugs,Balance Sheet,LLOYDS PHARMACY CLINICAL HOMECARE LTD,40014007,GB 222516987,OCTCONS08,"66,164.38"
Department of Health,Royal Papworth Hospital NHS Foundation Trust,10/31/2021,Med Equip Additions,Balance Sheet,MEDTRONIC LTD,39991583,467254526,1204755299,"124,875.24"
Department of Health,Royal Papworth Hospital NHS Foundation Trust,10/31/2021,Med Equip Additions,Balance Sheet,MEDTRONIC LTD,40062139,467254526,1204763102,"232,052.76"
Department of Health,Royal Papworth Hospital NHS Foundation Trust,10/31/2021,Med & Surg Equip General,NHSBT Morgan Study,NEUCIN DESIGN LTD,39998591,272195104,NDI1093,"36,099.00"
Department of Health,Royal Papworth Hospital NHS Foundation Trust,10/31/2021,Bldg Ctrcts - PFI Svc Chg,Interest / Divis / P&L On Fas,NPH HEALTHCARE LTD,39811892,,SI1452,"1,240,982.03"
Department of Health,Royal Papworth Hospital NHS Foundation Trust,10/31/2021,Services Received - HAs,External Pathology,PUBLIC HEALTH ENGLAND,40041136,888849628,5000112,"46,741.12"
Department of Health,Royal Papworth Hospital NHS Foundation Trust,10/31/2021,Services Received - HAs,External Pathology,PUBLIC HEALTH ENGLAND,39775210,888849628,6514580,"46,741.12"
Department of Health,Royal Papworth Hospital NHS Foundation Trust,10/31/2021,Med Equip Additions,Balance Sheet,STRYKER UK LTD,40054517,123338734,28986754,"161,634.00"
Department of Health,Royal Papworth Hospital NHS Foundation Trust,10/31/2021,Other Liabilities - Curr,Balance Sheet,SUPPLY CHAIN COORDINATION LIMITED,39804212,290885854,1122112144,"567,749.73"
Department of Health,Royal Papworth Hospital NHS Foundation Trust,10/31/2021,Other Liabilities - Curr,Balance Sheet,SUPPLY CHAIN COORDINATION LIMITED,39940526,290885854,1122114358,"600,926.68"
Department of Health,Royal Papworth Hospital NHS Foundation Trust,10/31/2021,Other Liabilities - Curr,Balance Sheet,SUPPLY CHAIN COORDINATION LIMITED,39804305,290885854,1122118634,"679,583.39"
Department of Health,Royal Papworth Hospital NHS Foundation Trust,10/31/2021,Med & Surg Equip General,Transplant,TRANSMEDICS BV,40018372,NL817196195B01,35210269,"250,620.00"
Department of Health,Royal Papworth Hospital NHS Foundation Trust,10/31/2021,Char Fund Contra Acc Curr,Balance Sheet,UNIVERSITY OF CAMBRIDGE,39790211,GB 823847609,RA1108909,"37,200.00"
Department of Health,Royal Papworth Hospital NHS Foundation Trust,10/31/2021,Electricity,Waterbeach,URBAN & CIVIC WATERBEACH LTD,39949763,,WAT115,"39,458.94"
